[Event "Karel Janecek Open 2024"]
[Site "Prague"]
[Date "2024.03.02"]
[Round "4.7"]
[White "Muthaiah AL"]
[Black "Neuman, Petr"]
[Result "0-1"]
[ECO "A48"]
[WhiteElo "2464"]
[BlackElo "2398"]
[Annotator "TA"]
[PlyCount "104"]
[EventDate "2024.02.22"]
[EventType "swiss"]
[EventCountry "CZE"]
[SourceTitle "playchess.com"]
[Source "ChessBase"]
[SourceQuality "1"]
[TimeControl "40/5400+30:1800+30"]

{[%evp 18,104,31,0,11,0,7,-8,0,-18,0,0,0,0,0,-10,-34,-39,-45,-63,-65,-62,-47,-72,-45,-60,-35,-41,-22,-20,-30,-12,-15,-14,-17,-17,-18,-18,-18,-18,-5,0,0,-21,-7,-91,-31,-28,-24,-55,-48,-23,-2,-35,-22,-73,-59,-160,-87,-291,-277,-697,-663,-2251,-1831,-2350,-2085,-2137,-1991,-2239,-1985,-1985,-372,-2289,-2575,-2400,-2000,-29974,-29975,-29973,-29975,-29981,-29982,-29982,-29981,-29981,-29982,-29979,-29980]} 1. d4 {[%emt 0:00:26]} Nf6 {[%emt 0:00:03]} 2. Nf3 {[%emt 0:01:09]} g6 {[%emt 0:00:12]} 3. Bf4 {[%emt 0:00:30]} Bg7 {[%emt 0:00:13]} 4. e3 {[%emt 0:00:30]} d6 {[%emt 0:00:16]} 5. h3 {[%emt 0:00:15]} O-O {[%emt 0:00:20]} 6. Be2 {[%emt 0:00:43]} Nc6 $1 {[%emt 0:01:18][%mdl 4] 6...Nc6 is the recent fashion.} 7. c3 {[%emt 0:02:06] A48: 1 d4 Nf6 2 Nf3 g6: Torre, London and Colle Systems.} Nd7 {[%emt 0:00:52]} 8. O-O {[%emt 0:01:06]} e5 {[%emt 0:00:07]} 9. Bh2 {[%emt 0:00:18]} b6 {[%emt 0:05:06]} 10. a4 {[%emt 0:08:54]} Bb7 {[%emt 0:00:45]} 11. Nbd2 {[%emt 0:03:07]} Qe7 {[%emt 0:03:00]} 12. Nc4 {[%emt 0:01:40]} a5 $146 {[%emt 0:01:50]} ({Predecessor:} 12... f5 13. a5 Rae8 14. axb6 axb6 15. Qb3 Kh8 16. dxe5 dxe5 17. Rfd1 g5 18. Ne1 f4 {0-1 Martini,B (2353)-Horvath,A (2481) HUN-ch rapid 2018 (3)}) 13. Re1 {[%emt 0:05:20]} Kh8 {[%emt 0:05:30]} 14. Na3 {[%emt 0:10:33]} f5 {[%emt 0:05:01]} 15. Nb5 {[%emt 0:01:19]} Nf6 {[%emt 0:00:08]} 16. dxe5 {[%emt 0:08:18]} Nxe5 {[%emt 0:03:10]} 17. Nxe5 {[%emt 0:03:49]} dxe5 {[%emt 0:00:07]} 18. Qb3 {[%emt 0:00:56]} Ne4 {[%emt 0:01:11]} 19. Qc2 {[%emt 0:11:44]} Nc5 {[%emt 0:06:14]} 20. f3 {[%emt 0:05:40]} Bd5 {[%emt 0:08:05]} 21. b4 {[%emt 0:06:25]} Ne6 {[%emt 0:02:36]} (21... Bb3 $2 22. Qb1 $18) 22. Rad1 {[%emt 0:04:43]} Rfd8 {[%emt 0:01:51]} 23. Bg3 {[%emt 0:10:18]} axb4 {[%emt 0:06:16]} 24. cxb4 {[%emt 0:00:24]} c6 {[%emt 0:00:24]} 25. Nc3 {[%emt 0:08:08]} ({Much worse is} 25. e4 cxb5 26. exd5 Nd4 27. Rxd4 exd4 28. Bxb5 Qxb4 $15) 25... Qxb4 {[%emt 0:00:06]} 26. Nxd5 {[%emt 0:00:08]} cxd5 {[%emt 0:00:06]} 27. Qc6 {[%emt 0:00:24]} Qd6 {[%emt 0:00:50]} (27... Qxa4 $2 28. Qxe6 Qd7 29. Qxd7 (29. Qxb6 Rab8 $18) 29... Rxd7 30. Bb5 $18) 28. Bb5 {[%emt 0:00:07]} Rac8 {[%emt 0:02:57]} 29. Qxd6 {[%emt 0:00:31]} Rxd6 {[%emt 0:00:04]} 30. Rc1 {[%emt 0:00:21]} Rcd8 {[%emt 0:01:17]} 31. e4 {[%emt 0:02:17]} (31. Re2 $11) 31... dxe4 {[%emt 0:01:50]} (31... fxe4 $1 $17 32. fxe4 d4) 32. fxe4 $15 {[%emt 0:00:01]} f4 {[%emt 0:00:14]} 33. Bf2 {[%emt 0:00:09]} Nd4 {[%emt 0:00:08]} 34. Rc7 {[%emt 0:00:54]} g5 {[%emt 0:01:05]} 35. Bxd4 {[%emt 0:03:03]} Rxd4 {[%emt 0:00:42]} 36. Rc6 {[%emt 0:01:00]} (36. Re7 $1 $11) 36... Bf8 $17 {[%emt 0:00:58]} 37. Kf2 {[%emt 0:00:26] [#]} (37. Kf1 $15) 37... h5 {[%emt 0:20:53]} (37... Rb4 $142 $1 38. Rc7 Bc5+ 39. Kf1 Rd2) 38. Kf3 $2 {[%emt 0:00:55] [#]} (38. Rxb6 $17 Bc5 39. Rc6 Rd2+ (39... Rxe4+ $2 {loses.} 40. Rxc5 Rd2+ 41. Re2 $18) 40. Kf1 Rf2+ 41. Kg1) 38... Rb4 $1 $19 {[%emt 0:01:14]} 39. Rec1 $2 {[%emt 0:00:25]} (39. Rc2) 39... Rd2 $19 {[%emt 0:00:45]} 40. R1c2 {[%emt 0:00:55]} Rb3+ {[%emt 0:00:34]} 41. R6c3 {[%emt 0:00:54]} Rxc2 {[%emt 0:00:47]} 42. Rxb3 {[%emt 0:00:01]} Bc5 {[%emt 0:00:12]} 43. Be2 {[%emt 0:03:05]} g4+ {[%emt 0:00:07]} 44. hxg4 {[%emt 0:00:07]} hxg4+ {[%emt 0:00:04]} 45. Kxg4 {[%emt 0:00:09]} Rxe2 {[%emt 0:00:07]} 46. Kf5 {[%emt 0:00:08]} Bd4 {[%emt 0:03:51]} 47. g3 {[%emt 0:03:21]} Re3 {[%emt 0:00:41]} 48. Rb1 {[%emt 0:01:08]} Rxg3 {[%emt 0:00:21]} 49. a5 {[%emt 0:00:44]} bxa5 {[%emt 0:00:17]} 50. Kf6 {[%emt 0:00:09]} Kh7 {[%emt 0:01:20]} 51. Rh1+ {[%emt 0:01:48]} Kg8 {[%emt 0:00:05]} 52. Rb1 {[%emt 0:00:14]} f3 {[%emt 0:01:21]} 0-1

[Event "Karel Janecek Open 2024"]
[Site "Prague"]
[Date "2024.03.02"]
[Round "4.8"]
[White "Senthil Maran K"]
[Black "Isik, Alparslan"]
[Result "1/2-1/2"]
[ECO "D02"]
[WhiteElo "2275"]
[BlackElo "2452"]
[Annotator "TA"]
[PlyCount "69"]
[EventDate "2024.02.22"]
[EventType "swiss"]
[EventCountry "CZE"]
[SourceTitle "playchess.com"]
[Source "ChessBase"]
[SourceQuality "1"]
[TimeControl "40/5400+30:1800+30"]

{[%evp 9,69,0,9,0,33,27,20,20,16,0,-13,-27,-19,-25,-18,-28,16,8,0,9,20,15,8,0,0,0,7,9,19,0,0,0,0,0,17,19,16,14,22,20,19,20,41,40,43,42,39,31,26,16,34,-29996,0,0,0,0,0,0,0,0,0,0]} 1. d4 {[%emt 0:00:02]} Nf6 {[%emt 0:01:26]} 2. Nf3 {[%emt 0:00:29]} d5 {[%emt 0:00:14]} 3. g3 {[%emt 0:00:29]} Bg4 {[%emt 0:03:07]} 4. Ne5 {[%emt 0:00:36]} Bf5 {[%emt 0:00:21]} 5. c4 {[%emt 0:00:12]} c6 {[%emt 0:01:24][%cal Bc7c6,Bc6d5,Bd5e4][%mdl 32]} 6. cxd5 {[%emt 0:02:37]} cxd5 {[%emt 0:00:37]} 7. Nc3 {[%emt 0:03:51][%cal Oe2e4]} Nc6 {[%emt 0:01:21]} 8. f3 {[%emt 0:09:55][%cal Oe2e4]} g6 {[%emt 0:08:34]} 9. e4 {[%emt 0:09:44]} dxe4 {[%emt 0:08:44]} 10. Qb3 {[%emt 0:02:25][%csl Ge5][%cal Rb3f7] [#]} Nxe5 {[%emt 0:08:04]} (10... Be6 {with more complications.} 11. Qxb7 Nxd4 12. Bb5+ Nxb5 13. Qxb5+ Nd7) 11. dxe5 {[%emt 0:00:24]} Nd7 {[%emt 0:00:06][%cal Bf6d7,Bd7c5,Bc5d3,Bd3b2][%mdl 32]} 12. f4 {[%emt 0:24:46][%cal Oc1e3]} Bg7 {[%emt 0:01:27]} 13. Be3 {[%emt 0:01:41][%cal Oa1d1][%mdl 1024] White has compensation.} O-O {[%emt 0:00:30]} 14. Bg2 {[%emt 0:08:11]} Qa5 {[%emt 0:01:37]} 15. O-O {[%emt 0:01:48]} Nc5 {[%emt 0:05:42]} 16. Qc4 {[%emt 0:06:19]} Nd3 {[%emt 0:06:29]} 17. Nxe4 {[%emt 0:00:37]} Nxb2 {[%emt 0:01:34]} 18. Qb3 {[%emt 0:01:36][%csl LRb2,LRb7]} Na4 {[%emt 0:04:44]} 19. Rac1 {[%emt 0:00:42]} Rac8 {[%emt 0:05:14] Dodges Nc5} 20. Qxb7 {[%emt 0:02:49]} Bxe4 {[%emt 0:08:20]} 21. Bxe4 {[%emt 0:05:29]} Nc5 {[%emt 0:03:00]} 22. Bxc5 {[%emt 0:05:42]} (22. Qxe7 $2 {perishes.} Nxe4 23. Rxc8 Rxc8 $19) 22... Rxc5 {[%emt 0:00:05]} 23. Qxe7 {[%emt 0:01:49]} Rxc1 {[%emt 0:02:52]} 24. Rxc1 {[%emt 0:00:03]} Qd2 {[%emt 0:03:02]} 25. Qc5 {[%emt 0:01:28] Active counter play!} Rb8 {[%emt 0:00:07] [#] ...Rb2 would now be deadly.} 26. Qc2 {[%emt 0:04:00]} Qd4+ {[%emt 0:00:53]} 27. Kh1 {[%emt 0:00:05]} Rb2 {[%emt 0:00:10]} 28. Rd1 {[%emt 0:01:54]} Qb6 {[%emt 0:00:04]} 29. Qc6 {[%emt 0:02:07] Threatens to win with Qxb6.} Qf2 {[%emt 0:02:38][%csl Gb2][%cal Rf2h2]} 30. Rd8+ {[%emt 0:00:04]} Bf8 {[%emt 0:00:06]} 31. Rxf8+ $1 {[%emt 0:00:03] The position is equal.} Kxf8 {[%emt 0:00:06][%csl Gb2][%cal Rf2h2]} 32. Qd6+ {[%emt 0:00:04]} Kg8 {[%emt 0:00:06][%csl Gb2][%cal Rf2h2]} (32... Kg7 $5 33. Qf6+ $8 Kg8 34. Qd8+ Kg7 35. Qf6+ Kg8 36. Qd8+ Kg7 37. Qf6+ $11) 33. Qd8+ {[%emt 0:00:05]} Kg7 {[%emt 0:00:04][%csl Gb2][%cal Rf2h2]} 34. Qf6+ {[%emt 0:00:05]} Kg8 {[%emt 0:00:15][%csl Gb2][%cal Rf2h2]} 35. Qd8+ {[%emt 0:00:07] Weighted Error Value: White=0.34/Black=0.04 (flawless) .  Missed win:     	---       	Black=1      Inaccurate:     	White=2     	Black=2      OK:         	White=13    	Black=14     Best:        	White=5     	Black=2      Strong:       	White=1     	---} 1/2-1/2

[Event "Karel Janecek Open 2024"]
[Site "Prague"]
[Date "2024.03.02"]
[Round "4.9"]
[White "Shagbazyan, Taron"]
[Black "Safarli, Eltaj"]
[Result "0-1"]
[ECO "E47"]
[WhiteElo "2403"]
[BlackElo "2604"]
[Annotator "TA"]
[PlyCount "126"]
[EventDate "2024.02.22"]
[EventType "swiss"]
[EventCountry "CZE"]
[SourceTitle "playchess.com"]
[Source "ChessBase"]
[SourceQuality "1"]
[TimeControl "40/5400+30:1800+30"]

{[%evp 15,126,-12,-6,-16,0,-4,0,0,0,7,16,15,17,10,18,-8,-5,-27,-22,-41,-5,-43,0,-37,-23,-39,-26,-77,-91,-81,-79,-91,-65,-71,-42,-71,-75,-67,-54,-90,-86,-87,-96,-127,-121,-128,-96,-88,-97,-78,-78,-96,-93,-110,-110,-137,-153,-145,-106,-102,-79,-94,-99,-265,-265,-265,-265,-461,-400,-724,-724,-694,-685,-547,-82,-620,-487,-652,-622,-5695,-5181,-29962,-29965,-29965,-29965,-29966,-29967,-29967,-29968,-29968,-29969,-29967,-29970,-29971,-29972,-29970,-29971,-29971,-29972,-29976,-29973,-29977,-29977,-29978,-29979,-29982,-29983,-29983,-29983,-29983,-29984,-29985,-29986]} 1. d4 {[%emt 0:11:22]} Nf6 {[%emt 0:00:12]} 2. c4 {[%emt 0:00:09]} e6 {[%emt 0:00:34]} 3. Nc3 {[%emt 0:00:09]} Bb4 {[%emt 0:01:06]} 4. e3 {[%emt 0:00:05]} O-O {[%emt 0:00:07]} 5. Bd3 {[%emt 0:00:08]} Re8 {[%emt 0:05:43]} 6. Nf3 {[%emt 0:05:30] E47: Nimzo-Indian: Rubinstein: 5 Bd3 without ...d5.} d6 {[%emt 0:01:36]} 7. Bd2 {[%emt 0:10:38]} e5 {[%emt 0:01:57]} 8. dxe5 {[%emt 0:01:57]} dxe5 {[%emt 0:00:29]} 9. Bc2 $146 {[%emt 0:00:05]} ({Predecessor:} 9. Qc2 Nbd7 10. Be2 c6 11. O-O Qe7 12. a3 Bd6 13. e4 a5 14. Rab1 b6 15. Bg5 {0-1 Daniel,A-Gehrke,K GER OS-019 email 2005}) 9... Nc6 {[%emt 0:06:46]} 10. a3 {[%emt 0:23:23]} Bxc3 {[%emt 0:05:33]} 11. Bxc3 {[%emt 0:00:24]} Qe7 {[%emt 0:00:26]} 12. Nd2 {[%emt 0:13:01]} Bg4 {[%emt 0:01:47]} 13. f3 {[%emt 0:01:07]} Bh5 {[%emt 0:00:54]} 14. O-O $1 {[%emt 0:02:41]} Rad8 {[%emt 0:01:14]} 15. Qe1 {[%emt 0:00:53]} Bg6 {[%emt 0:00:44]} 16. Bxg6 {[%emt 0:01:37]} hxg6 {[%emt 0:00:08]} 17. Qe2 {[%emt 0:00:11]} a5 {[%emt 0:00:40]} 18. Rfd1 {[%emt 0:01:55]} a4 {[%emt 0:08:14]} 19. Nf1 {[%emt 0:06:21]} Qe6 {[%emt 0:02:48]} 20. Bb4 {[%emt 0:02:50]} g5 {[%emt 0:02:01]} 21. Qc2 {[%emt 0:03:54]} (21. Bc3 $11) 21... e4 {[%emt 0:08:04]} 22. fxe4 {[%emt 0:00:36]} Nxe4 {[%emt 0:03:17]} 23. Rac1 {[%emt 0:00:22]} Nxb4 {[%emt 0:06:44]} 24. axb4 {[%emt 0:00:03]} Qe5 {[%emt 0:00:25]} 25. c5 {[%emt 0:00:52]} b5 {[%emt 0:02:49]} 26. cxb6 {[%emt 0:03:41]} cxb6 {[%emt 0:00:05]} 27. Rxd8 {[%emt 0:06:11]} Rxd8 {[%emt 0:00:03]} 28. Qxa4 {[%emt 0:00:04]} Qxb2 {[%emt 0:01:49]} 29. Qc2 {[%emt 0:00:50] [#]} Qxc2 $1 {[%emt 0:02:49]} (29... Qxb4 30. Rb1 Qe7 31. Rxb6 $16) 30. Rxc2 {[%emt 0:00:02]} Rd1 {[%emt 0:00:06]} 31. g4 {[%emt 0:01:17]} Rb1 {[%emt 0:01:06]} 32. Kg2 {[%emt 0:00:03]} Rxb4 {[%emt 0:00:06]} 33. Rc8+ {[%emt 0:00:07]} Kh7 {[%emt 0:00:05]} 34. Kf3 {[%emt 0:00:05]} Nd6 {[%emt 0:02:26]} 35. Rc7 {[%emt 0:00:44] [#]} Nc4 $1 {[%emt 0:00:21]} 36. h3 {[%emt 0:00:35]} Ne5+ {[%emt 0:00:16]} 37. Ke2 {[%emt 0:00:05]} Rb1 {[%emt 0:06:11]} 38. Nd2 {[%emt 0:01:39]} Rh1 {[%emt 0:01:59]} 39. Nf3 $2 {[%emt 0:00:23]} (39. Ne4 $17) 39... Nxf3 $19 {[%emt 0:00:27]} 40. Kxf3 {[%emt 0:00:07]} Rxh3+ {[%emt 0:00:29]} 41. Kg2 $2 {[%emt 0:33:48]} (41. Ke2 Rh2+ 42. Kf3) 41... Rxe3 $19 {[%emt 0:34:03]} 42. Rxf7 {[%emt 0:00:28]} (42. Rb7 $142) 42... Re5 $19 {[%emt 0:00:07]} 43. Kg3 {[%emt 0:00:00]} b5 {[%emt 0:00:00]} 44. Rf8 {[%emt 0:00:00]} g6 {[%emt 0:00:00]} 45. Rf6 $2 {[%emt 0:00:00][%mdl 8192]} (45. Rf7+ $17 Kg8 46. Rd7) 45... Kg7 $19 {[%emt 0:00:00]} 46. Rb6 {[%emt 0:00:00]} Kf7 {[%emt 0:00:00]} 47. Kf3 {[%emt 0:00:00]} Ke7 {[%emt 0:00:00]} 48. Rxg6 {[%emt 0:00:00]} Kd7 {[%emt 0:00:00]} 49. Rg8 {[%emt 0:00:00]} Kc6 {[%emt 0:00:00]} 50. Rc8+ {[%emt 0:00:00]} Kd5 {[%emt 0:00:00]} 51. Rd8+ {[%emt 0:00:00]} Kc4 {[%emt 0:00:00]} 52. Rc8+ {[%emt 0:00:00]} Rc5 {[%emt 0:00:00]} 53. Rb8 {[%emt 0:00:00]} b4 {[%emt 0:00:00]} 54. Ke2 {[%emt 0:00:00]} Kc3 {[%emt 0:00:00]} 55. Kd1 {[%emt 0:01:06]} Rc4 {[%emt 0:00:00]} 56. Kc1 {[%emt 0:00:50]} Kb3+ {[%emt 0:00:00]} 57. Kd2 {[%emt 0:01:11]} Rxg4 {[%emt 0:00:00]} 58. Rb5 {[%emt 0:00:14]} Kb2 {[%emt 0:00:00]} 59. Rb8 {[%emt 0:00:20]} b3 {[%emt 0:00:00]} 60. Rb5 {[%emt 0:00:05]} Rg3 {[%emt 0:00:00]} 61. Rb8 {[%emt 0:00:38]} Kb1 {[%emt 0:00:00]} 62. Rb5 {[%emt 0:00:36]} b2 {[%emt 0:00:00]} 63. Rb8 {[%emt 0:00:20]} Ka2 {[%emt 0:00:00]} 0-1

[Event "Karel Janecek Open 2024"]
[Site "Prague"]
[Date "2024.03.02"]
[Round "4.10"]
[White "Bernadskiy, Vitaliy"]
[Black "Svanda, Ondrej"]
[Result "1-0"]
[ECO "B58"]
[WhiteElo "2566"]
[BlackElo "2369"]
[Annotator "TA"]
[PlyCount "95"]
[EventDate "2024.02.22"]
[EventType "swiss"]
[EventCountry "CZE"]
[SourceTitle "playchess.com"]
[Source "ChessBase"]
[SourceQuality "1"]
[TimeControl "40/5400+30:1800+30"]

{[%evp 19,95,0,10,-10,0,-13,12,10,13,0,0,-4,0,-1,-6,-2,0,0,66,37,56,62,50,60,55,48,41,40,73,42,47,43,115,117,112,107,110,70,142,109,164,180,220,208,233,209,206,202,194,206,209,209,207,154,154,77,82,56,438,448,433,437,494,505,505,502,689,697,690,641,680,580,685,683,945,875,816,855]} 1. e4 {[%emt 0:00:03]} c5 {[%emt 0:00:05]} 2. Nf3 {[%emt 0:00:06]} d6 {[%emt 0:00:03]} 3. d4 {[%emt 0:00:51]} cxd4 {[%emt 0:00:06]} 4. Nxd4 {[%emt 0:00:04]} Nf6 {[%emt 0:00:04]} 5. Nc3 {[%emt 0:00:08]} Nc6 {[%emt 0:00:02]} 6. Be2 {[%emt 0:00:39]} e5 {[%emt 0:00:45]} 7. Nf3 {[%emt 0:04:15]} h6 {[%emt 0:00:54]} 8. O-O {[%emt 0:00:44]} Be7 {[%emt 0:02:02]} 9. b3 {[%emt 0:02:40]} O-O {[%emt 0:03:18]} 10. Bb2 {[%emt 0:00:05]} a6 {[%emt 0:11:12]} 11. Qd2 {[%emt 0:15:23]} Bg4 {[%emt 0:07:13]} 12. h3 {[%emt 0:04:12]} Bxf3 {[%emt 0:09:13]} 13. Bxf3 {[%emt 0:00:14] The position is equal.} Nd4 {[%emt 0:00:03]} 14. Bd1 {[%emt 0:00:06]} Qa5 {[%emt 0:04:55]} 15. Nb1 {[%emt 0:06:53]} Qc5 {[%emt 0:05:15]} 16. Re1 {[%emt 0:02:45]} b5 {[%emt 0:03:56]} 17. b4 {[%emt 0:03:43]} Qc7 {[%emt 0:06:02]} 18. a4 {[%emt 0:04:50]} Nd7 {[%emt 0:06:32]} ({Better is} 18... Ne6 $11) 19. c3 {[%emt 0:06:20]} Ne6 {[%emt 0:01:39]} 20. axb5 $1 {[%emt 0:00:46]} axb5 {[%emt 0:00:31]} 21. Rxa8 {[%emt 0:00:35]} Rxa8 {[%emt 0:00:01]} 22. Na3 {[%emt 0:00:07][%cal Bb1a3,Ba3c4,Bc4e3][%mdl 32]} Qc6 {[%emt 0:05:44]} 23. Bb3 {[%emt 0:01:07] [#] Bd5 would now be deadly.} Nc7 {[%emt 0:02:50]} 24. c4 {[%emt 0:01:29]} bxc4 {[%emt 0:04:23]} 25. Nxc4 {[%emt 0:02:34]} Nb6 {[%emt 0:00:02]} (25... Nf8 $14) 26. Ne3 $16 {[%emt 0:04:36]} Bg5 {[%emt 0:02:38][%cal Oa8d8]} 27. Rc1 {[%emt 0:02:57]} Qd7 {[%emt 0:05:28]} 28. g3 {[%emt 0:06:39][%cal Of2f4]} Nb5 {[%emt 0:02:42]} (28... Ne8 $14) 29. h4 {[%emt 0:00:44]} Be7 {[%emt 0:02:53]} (29... Bxe3 $16 {keeps fighting.} 30. Qxe3 Rb8) 30. Nd5 $18 {[%emt 0:03:39]} Nxd5 {[%emt 0:02:17]} 31. Qxd5 {[%emt 0:01:21]} ({Worse is} 31. exd5 Bxh4 32. gxh4 Qg4+ 33. Kh2 Qxh4+ 34. Kg2 Qg4+ 35. Kh2 Qh4+ 36. Kg1 Qg4+ 37. Kh2 Qh5+ 38. Kg3 Qg6+ 39. Kh2 Qh5+ 40. Kg3 Qg6+ 41. Kh2 Qh5+ $11) 31... Qe8 {[%emt 0:00:02] Black is weak on the light squares} 32. Kg2 {[%emt 0:01:43]} Ra7 {[%emt 0:02:05]} 33. Rc6 {[%emt 0:02:09]} Nc7 {[%emt 0:02:20]} 34. Qc4 {[%emt 0:00:10]} Ne6 {[%emt 0:00:26]} 35. Rc8 {[%emt 0:02:46] Inhibits Ra8.} Bd8 {[%emt 0:00:15]} 36. Rb8 {[%emt 0:02:50]} Qe7 {[%emt 0:02:59] [#]} 37. b5 {[%emt 0:03:53] White is more active.} (37. Qc6 $142 $1 {b5 is the strong threat.} Nf8 38. Qd5) 37... Rb7 $16 {[%emt 0:01:41]} 38. Ra8 $36 {[%emt 0:04:07][%mdl 2048] Black is under pressure.} Ra7 $2 {[%emt 0:00:14][%mdl 8192] Black cannot hold the game after this.} (38... Kh7 $1 $14) 39. Rxa7 $18 {[%emt 0:00:59] White is clearly winning.} Qxa7 {[%emt 0:00:02]} 40. Qc8 {[%emt 0:00:17]} Qc7 {[%emt 0:05:38]} 41. Bxe6 {[%emt 0:30:22]} fxe6 {[%emt 0:30:10]} 42. Qxe6+ {[%emt 0:00:13][%mdl 4096] Endgame. KQB-KQB} Kf8 {[%emt 0:00:33]} 43. Ba3 {[%emt 0:01:29] Wards off Qc5} Be7 {[%emt 0:00:03]} 44. Qd5 {[%emt 0:00:12]} Ke8 {[%emt 0:00:00]} 45. Bb4 {[%emt 0:00:00]} Kd7 {[%emt 0:00:00]} 46. h5 {[%emt 0:00:00]} Qb6 {[%emt 0:00:00]} 47. Bd2 {[%emt 0:00:00] aiming for Be3.} Qc5 {[%emt 0:00:00]} 48. Be3 {[%emt 0:00:00] Weighted Error Value: White=0.15 (very precise) /Black=0.41.  Loses game:     	---       	Black=1      Mistake:       	White=1     	Black=4      Inaccurate:     	White=3     	Black=3      OK:         	White=17    	Black=14     Best:        	White=1     	Black=1      Strong:       	White=1     	---} 1-0